bitfinex/quotes_ETHUSD_20250725
["timestamp","ask_amount","ask_price","bid_price","bid_amount"]
[1753485288654,2.9328,3712.6,3712.2,0.9445]
[1753485288855,0.4678,3712.5,3712.2,0.4547]
[1753485289670,0.4678,3712.4,3712.0,6.46783775]
[1753485289891,0.4678,3712.4,3712.1,2.6938762]
[1753485290172,2.465,3712.6,3712.2,2.69381979]
[1753485290343,2.465,3712.6,3712.2,2.69375996]
[1753485290544,2.9306,3712.6,3712.3,0.9465]
[1753485290784,2.9306,3712.6,3712.3,0.4471]
[1753485291284,2.465,3712.6,3712.3,0.4471]
[1753485291487,0.4656,3712.5,3712.3,3.14084055]
[1753485291879,2.465,3712.6,3712.4,0.4471]
[1753485292076,2.9306,3712.6,3712.4,0.4471]
[1753485294301,0.4656,3712.5,3712.2,3.14091156]
[1753485294505,0.4656,3712.5,3712.3,0.4471]
[1753485295668,0.56240728,3712.5,3711.8,0.8147]
[1753485295869,0.4656,3712.4,3712.0,3.14101894]
[1753485296058,0.7819,3712.5,3712.0,3.14101894]
[1753485296258,0.4656,3712.4,3712.1,0.4471]
[1753485296685,0.4656,3712.3,3712.1,0.4471]
[1753485297403,0.4656,3712.3,3712.1,3.1409904]
[1753485297594,0.7819,3712.5,3712.2,0.4471]
[1753485298096,0.4656,3712.4,3712.2,0.4471]
[1753485298805,2.5994,3712.6,3712.1,2.69386503]
[1753485298974,0.4656,3712.5,3712.3,0.4471]
[1753485299602,5.29293301,3712.6,3712.3,0.4471]
[1753485299804,0.4656,3712.4,3712.3,0.4471]
[1753485304174,5.75854418,3712.6,3712.3,0.4471]
[1753485304374,0.4656,3712.5,3712.3,0.4471]
[1753485305708,0.4656,3712.5,3712.4,0.4471]
[1753485306279,2.5994,3712.6,3712.4,0.4471]
[1753485306690,3.065,3712.6,3712.4,0.4471]
[1753485307273,2.5994,3712.6,3712.4,0.4471]
[1753485307603,2.465,3712.8,3712.5,3.64008021]
[1753485307803,0.8011,3713.2,3712.6,0.9465]
[1753485308003,0.1344,3713.0,3712.7,0.9465]
[1753485308210,2.465,3713.1,3712.8,0.4471]
[1753485308407,2.5994,3713.1,3712.8,0.9465]
[1753485308713,2.465,3713.1,3713.0,2.69323996]
[1753485308873,0.8011,3713.4,3713.0,0.4471]
[1753485309073,2.5994,3713.3,3713.1,0.4994]
[1753485309276,2.5994,3713.3,3713.2,0.4471]
[1753485312005,2.465,3713.3,3713.2,0.4471]
[1753485312212,2.465,3713.3,3713.2,3.1401949]
[1753485312376,2.465,3713.3,3713.2,3.6395949]
[1753485312913,0.1344,3713.5,3713.2,3.1401949]
[1753485313072,0.8114,3713.8,3713.5,2.69287058]
[1753485313073,2.465,3713.6,3713.5,2.69287058]
[1753485313275,2.465,3713.6,3713.5,3.63937058]
[1753485313726,2.465,3713.6,3713.5,0.9465]
[1753485314220,2.465,3713.6,3713.5,3.63937733]
[1753485316021,2.464,3713.9,3713.5,0.9465]
[1753485316190,2.464,3713.9,3713.6,3.13985805]
[1753485316389,2.464,3713.9,3713.7,3.13981406]
[1753485316611,2.464,3713.9,3713.6,0.4994]
[1753485316612,3.49044691,3714.4,3713.8,2.6926598]
[1753485316922,0.1344,3714.2,3713.8,0.4471]
[1753485317127,0.1344,3714.2,3713.9,3.63903616]
[1753485317436,0.6,3714.2,3714.0,3.13960576]
[1753485317600,2.464,3714.3,3714.1,2.69238238]
[1753485317930,0.7982,3714.7,3714.2,2.69236982]
[1753485317931,0.1344,3714.5,3714.2,2.69236982]
[1753485318108,2.5984,3714.5,3714.2,2.69236982]
[1753485318420,3.064,3714.5,3714.2,3.13946982]
[1753485318719,0.4656,3714.4,3714.2,0.4471]
[1753485319709,0.4656,3714.4,3714.1,0.4994]
[1753485319710,2.464,3714.5,3714.1,2.69240239]
[1753485319949,2.464,3714.5,3714.3,0.4471]
[1753485320226,2.9582,3714.5,3714.3,0.4471]
[1753485321928,2.9582,3714.5,3713.9,3.65702027]
[1753485321929,2.464,3714.5,3713.9,3.65702027]
[1753485322233,2.464,3714.5,3714.1,0.1344]
[1753485322399,2.464,3714.5,3714.2,0.915]
[1753485322600,2.464,3714.5,3714.3,3.60723708]
[1753485322825,0.1344,3714.8,3714.4,0.4459]
[1753485323014,2.464,3714.9,3714.6,2.6920799]
[1753485323214,2.5984,3715.1,3714.8,2.69189492]
[1753485323525,3.0926,3715.1,3714.9,0.4459]
[1753485323720,3.0926,3715.1,3714.9,3.13774441]
[1753485323896,2.5984,3715.1,3714.9,0.4459]
[1753485324103,2.5984,3715.1,3715.0,0.4459]
[1753485324501,2.464,3715.1,3715.0,0.4459]
[1753485324832,2.464,3715.1,3715.0,3.13769004]
[1753485325207,2.464,3715.1,3715.0,0.4459]
[1753485325733,0.6286,3715.3,3715.0,0.4459]
[1753485325929,0.1344,3715.3,3715.0,0.4459]
[1753485326151,0.4942,3715.2,3715.0,0.4459]
[1753485330628,0.4942,3715.2,3715.1,0.4459]
[1753485330828,0.1344,3715.3,3715.1,0.4459]
[1753485331136,0.1344,3715.3,3714.9,3.16095976]
[1753485331137,0.1344,3715.3,3715.0,2.69174957]
[1753485331344,2.5974,3715.4,3715.1,0.59871626]
[1753485331640,3.0916,3715.4,3715.2,0.4459]
[1753485332018,2.5974,3715.4,3715.3,0.4459]
[1753485332420,2.463,3715.4,3715.3,0.4459]
[1753485333144,2.9572,3715.4,3715.3,0.4459]
[1753485333713,2.9072,3715.4,3715.3,0.4459]
[1753485335238,2.9072,3715.4,3715.1,0.4459]
[1753485335424,2.9072,3715.4,3715.0,4.07736373]
[1753485335425,0.4942,3715.4,3715.2,0.4459]
[1753485341941,2.9562,3715.4,3715.2,0.4459]
[1753485342128,5.64770741,3715.4,3715.2,0.4459]
[1753485342329,2.69186249,3714.9,3714.8,4.2]
[1753485342544,7.56828772,3714.9,3714.8,4.2]
[1753485342835,7.70268772,3714.9,3714.8,4.2]
[1753485343355,7.37018772,3714.9,3714.8,4.2]
[1753485343530,9.83218772,3714.9,3714.8,4.2]
[1753485343735,2.5964,3714.9,3714.8,4.2]
[1753485343941,2.462,3714.9,3714.8,4.6459]
[1753485344339,3.18578416,3715.3,3714.8,5.44141758]
[1753485344651,3.0906,3715.2,3714.9,0.915]
[1753485344873,5.78225806,3715.2,3715.0,0.4459]
[1753485345172,0.4942,3715.1,3714.8,4.6459]
[1753485345471,0.4942,3715.1,3714.9,0.4459]
[1753485346449,5.15372757,3715.1,3714.9,0.4459]
[1753485346653,0.4942,3715.0,3714.8,4.2]
[1753485346882,0.4942,3715.0,3714.8,0.4459]
[1753485347670,2.462,3715.1,3714.9,0.4459]
[1753485348040,2.9562,3715.1,3714.9,0.4459]
[1753485348469,2.462,3715.1,3715.0,0.4459]
[1753485348672,2.462,3715.1,3715.0,0.915]
[1753485349684,0.1344,3715.4,3715.0,3.60678687]
[1753485349844,0.1344,3715.4,3715.0,3.16088687]
[1753485350172,0.5961,3715.4,3715.1,0.4665]
[1753485350373,0.5961,3715.4,3715.0,0.4691]
[1753485350571,0.5961,3715.4,3715.2,0.4665]
[1753485350937,0.4617,3715.3,3715.2,0.4665]
[1753485351897,2.9237,3715.3,3715.2,0.4665]
[1753485352573,2.9237,3715.3,3715.0,0.4691]
[1753485352982,2.9237,3715.3,3715.1,0.4665]
[1753485353185,2.462,3715.3,3715.2,0.4665]
[1753485353364,2.462,3715.3,3715.2,1.41496819]
[1753485353560,2.462,3715.3,3715.2,4.10661332]
[1753485354494,2.462,3715.3,3715.2,1.41496819]
[1753485355394,2.462,3715.3,3715.2,4.10661332]
[1753485357095,3.0581,3715.6,3715.2,4.10661332]
[1753485357305,3.0581,3715.6,3715.3,0.4665]
[1753485357603,3.0581,3715.6,3715.4,0.4665]
[1753485358562,2.5964,3715.6,3715.4,0.4665]
[1753485358762,0.4617,3715.5,3715.2,4.10659829]
[1753485358961,0.4617,3715.5,3715.3,0.4665]
[1753485359166,2.462,3715.6,3715.3,1.18951822]
[1753485359473,2.462,3715.6,3715.4,3.64320024]
[1753485359804,2.462,3715.6,3715.5,3.1579278]
[1753485360103,2.462,3715.6,3715.5,0.4665]
[1753485360504,2.462,3715.6,3715.3,3.15805104]
[1753485360505,2.9237,3715.6,3715.3,3.15805104]
[1753485360705,1.9237,3715.6,3715.4,0.4665]
[1753485360905,1.462,3715.6,3715.4,0.4665]
[1753485361103,0.4617,3715.5,3715.4,0.4665]
[1753485362005,1.2775,3715.5,3715.2,2.82603258]
[1753485362189,0.8158,3715.5,3715.2,0.1344]
[1753485362381,0.4617,3715.4,3715.2,2.82603453]
[1753485362577,0.4617,3715.4,3715.2,3.62391773]
[1753485362810,0.4617,3715.4,3715.3,2.69157268]
[1753485363281,0.8158,3715.5,3715.2,3.62391067]
[1753485363694,0.4617,3715.4,3715.2,3.62391067]
[1753485363865,0.4617,3715.3,3715.2,3.62391067]
[1753485364317,0.8158,3715.5,3715.3,2.69150533]
[1753485364484,0.8042,3715.7,3715.4,2.69150024]
[1753485364685,0.4617,3715.6,3715.4,2.69150024]
[1753485364989,0.4617,3715.6,3715.4,3.15800024]
[1753485365808,0.1344,3715.8,3715.5,3.15788032]
[1753485365991,0.5961,3715.8,3715.5,3.15788032]
[1753485366193,0.4617,3715.7,3715.5,3.15788032]
[1753485366396,2.461,3715.9,3715.6,3.15782506]
[1753485366597,0.8042,3716.0,3715.5,0.69353329]
[1753485366908,0.1344,3716.2,3715.7,0.9517]
[1753485367083,0.1344,3716.2,3715.8,0.4665]
[1753485367290,0.4617,3716.1,3715.8,0.4665]
[1753485367494,0.4617,3716.1,3715.7,0.4852]
[1753485367815,0.4617,3716.1,3715.8,0.4665]
[1753485367984,0.4617,3716.2,3715.9,3.15759227]
[1753485368175,0.4617,3716.2,3716.0,0.4665]
[1753485368376,2.461,3716.4,3716.1,0.4665]
[1753485368578,1.4003,3716.5,3716.2,0.4665]
[1753485368774,0.1344,3716.5,3716.3,0.4665]
[1753485369013,0.1344,3716.5,3716.4,0.4665]
[1753485369494,0.5961,3716.5,3716.4,0.4665]
[1753485369712,0.5961,3716.5,3716.2,0.4665]
[1753485369876,0.5961,3716.5,3716.2,0.76216857]
[1753485370076,0.4617,3716.4,3716.2,0.76216857]
[1753485372499,0.1344,3716.5,3716.2,0.76216857]
[1753485372706,2.461,3716.7,3716.3,0.9517]
[1753485372881,2.461,3716.7,3716.4,0.9517]
[1753485373211,2.461,3716.7,3716.5,0.4665]
[1753485373413,2.461,3716.7,3716.6,0.4665]
[1753485373627,2.9227,3716.7,3716.4,0.4665]
[1753485373781,2.46,3717.1,3716.6,3.64232792]
[1753485373988,2.46,3717.1,3716.7,0.4665]
[1753485374191,0.4617,3717.0,3716.8,0.4665]
[1753485374397,0.4617,3717.0,3716.8,3.15694868]
[1753485374586,2.46,3717.1,3716.8,0.4665]
[1753485374786,2.46,3717.1,3716.9,0.4665]
[1753485374999,0.7731,3717.3,3716.9,0.4665]
[1753485375193,0.4617,3717.1,3716.9,0.4665]
[1753485376218,3.6948,3717.3,3717.0,0.4665]
[1753485376419,2.46,3717.3,3717.0,2.69033721]
[1753485376595,2.46,3717.3,3717.1,3.15675593]
[1753485376921,2.46,3717.3,3717.2,0.4665]
[1753485377110,6.50972523,3717.3,3716.9,2.69040013]
[1753485377311,6.50972523,3717.3,3717.2,0.4665]
[1753485377536,4.04972523,3717.3,3717.2,0.4665]
[1753485377722,4.04972523,3717.3,3717.2,3.64189692]
[1753485377911,2.46,3717.6,3717.2,0.9517]
[1753485377912,4.04972523,3717.5,3717.2,0.9517]
[1753485378225,2.46,3717.6,3717.3,0.9517]
[1753485378526,0.4617,3717.5,3717.3,0.4665]
[1753485378822,2.46,3717.6,3717.3,0.4665]
[1753485379007,6.50972523,3717.6,3717.4,0.4665]
[1753485379413,6.50972523,3717.6,3717.5,2.68997982]
[1753485379625,4.85792523,3717.9,3717.5,0.4665]
[1753485379790,7.31792523,3717.9,3717.6,2.68990746]
[1753485379991,7.31792523,3717.9,3717.6,0.4665]
[1753485380190,0.4524,3717.8,3717.6,0.4665]
[1753485381413,7.31792523,3717.9,3717.4,3.16143758]
[1753485381630,4.04972523,3717.7,3717.6,2.68990746]
[1753485381934,4.04972523,3717.7,3717.6,3.61280746]
[1753485382139,6.50972523,3717.9,3717.8,2.68976276]
[1753485382352,6.50972523,3717.9,3717.8,3.14126276]
[1753485384220,6.50972523,3717.9,3717.8,0.4515]
[1753485384749,6.50972523,3717.9,3717.8,3.14126276]
[1753485385631,6.50972523,3717.9,3717.8,0.4515]
[1753485386042,6.50972523,3717.9,3717.8,3.14126276]
[1753485387042,4.04972523,3717.9,3717.8,3.14126276]
[1753485387245,4.04972523,3717.9,3717.8,3.53921235]
[1753485387410,4.04972523,3717.9,3717.8,0.84944959]
[1753485387745,4.04972523,3717.9,3717.8,3.53921235]
[1753485389163,4.04972523,3717.9,3717.8,4.01061235]
[1753485391058,2.459,3718.1,3718.0,2.68961807]
[1753485391265,4.04972523,3718.3,3718.2,2.6894734]
[1753485391464,4.04972523,3718.3,3718.2,3.1409734]
[1753485392160,2.458,3718.4,3718.2,3.1409734]
[1753485392337,2.458,3718.4,3718.3,3.61230107]
[1753485392725,4.04972523,3718.7,3718.3,1.0951233]
[1753485392922,6.50772523,3718.7,3718.3,1.1150233]
[1753485393167,0.4524,3718.6,3718.4,3.14078304]
[1753485393340,0.4524,3718.6,3718.4,0.4515]
[1753485393666,6.50772523,3718.7,3718.5,0.4515]
[1753485393863,6.96012523,3718.7,3718.5,0.4515]
[1753485394229,0.4524,3718.6,3718.3,3.14087858]
[1753485394424,0.4524,3718.5,3718.3,4.03029945]
[1753485395260,0.4524,3718.5,3718.4,0.4515]
[1753485396951,0.4524,3718.5,3718.3,0.88942087]
[1753485397233,0.4524,3718.5,3718.3,0.4515]
[1753485397429,6.50772523,3718.7,3718.4,0.4515]
[1753485397634,0.4524,3718.6,3718.4,0.4515]
[1753485398770,0.4524,3718.5,3718.2,2.82384813]
[1753485399065,4.04972523,3718.3,3717.6,4.2]
[1753485399252,4.04972523,3717.9,3717.8,3.008]
[1753485399457,4.04972523,3717.9,3717.8,6.1492625]
[1753485399757,4.04972523,3717.9,3717.8,3.5939]
[1753485399959,4.04972523,3717.9,3717.8,6.28366276]
[1753485400167,4.04972523,3717.9,3717.8,8.14768798]
[1753485401757,4.04972523,3717.9,3717.8,5.68968798]
[1753485401948,4.04972523,3717.9,3717.8,8.14768798]
[1753485403833,4.04972523,3718.1,3718.0,3.23961807]
[1753485404038,4.04972523,3718.5,3718.3,2.68939599]
[1753485404239,4.04972523,3718.5,3718.1,3.007]
[1753485404443,4.04972523,3718.5,3718.4,0.4515]
[1753485404640,4.04972523,3718.5,3718.4,3.14082874]
[1753485406176,4.50212523,3718.6,3718.5,2.68921232]
[1753485406374,4.50212523,3718.6,3718.4,2.68931501]
[1753485406545,4.04972523,3718.6,3718.5,2.68925642]
[1753485407255,4.50212523,3718.6,3718.5,2.68925642]
[1753485408384,4.04972523,3718.6,3718.5,3.14075642]
[1753485408544,4.18412523,3719.0,3718.5,4.55049544]
[1753485408888,4.18412523,3719.1,3718.6,0.9229]
[1753485409089,4.04972523,3719.1,3718.8,2.68903947]
[1753485409384,0.4524,3719.0,3718.7,5.28048974]
[1753485409584,0.4524,3719.0,3718.8,2.6890312]
[1753485409743,0.4524,3719.0,3718.8,3.1405312]
[1753485410684,0.4524,3719.0,3718.8,0.4515]
[1753485410981,0.4936,3718.9,3718.8,0.4515]
[1753485411186,4.04972523,3719.1,3718.8,2.68902499]
[1753485411382,4.54332523,3719.1,3718.9,0.4497]
[1753485411593,0.4936,3719.0,3718.8,3.13873314]
[1753485412290,4.04972523,3719.1,3719.0,2.68889486]
[1753485412492,4.04972523,3719.1,3719.0,3.3398973]
[1753485413684,4.54332523,3719.1,3719.0,0.20130244]
[1753485413848,4.54332523,3719.1,3718.9,2.68895926]
[1753485414053,4.54332523,3719.1,3719.0,2.68889486]
[1753485414585,4.04972523,3719.1,3719.0,2.68889486]
[1753485414784,4.04972523,3719.1,3719.0,3.13859486]
[1753485416175,4.54332523,3719.1,3719.0,3.13859486]
[1753485416377,2.457,3719.3,3719.1,2.68880483]
[1753485416573,4.04972523,3719.2,3719.1,2.68880483]
[1753485416887,4.54332523,3719.2,3719.1,2.68880483]
[1753485417674,4.04972523,3719.2,3719.1,2.68880483]
[1753485417879,4.04972523,3719.2,3719.1,3.13850483]
[1753485418175,4.04972523,3719.2,3719.1,3.59270483]
[1753485418377,2.457,3719.3,3719.2,2.68875026]
[1753485418576,2.457,3719.3,3719.2,3.59265026]
[1753485419456,0.628,3719.6,3719.5,2.6885334]
[1753485419766,6.99932523,3719.6,3719.5,2.6885334]
[1753485420475,2.456,3719.6,3719.5,3.1382334]
[1753485421087,2.456,3719.6,3719.5,3.5924334]
[1753485421388,2.456,3719.6,3719.5,3.1382334]
[1753485421600,4.04972523,3720.1,3720.0,2.68817204]
[1753485421954,4.04972523,3720.1,3720.0,3.13787204]
[1753485422155,4.54332523,3720.1,3720.0,2.68817204]
[1753485423189,4.04972523,3720.1,3720.0,2.68817204]
[1753485423392,4.04972523,3720.1,3720.0,3.13787204]
[1753485424058,4.54332523,3720.1,3720.0,3.13787204]
[1753485424270,4.54332523,3720.1,3720.0,2.68817204]
[1753485424591,4.04972523,3720.1,3720.0,2.68817204]
[1753485424789,4.04972523,3720.1,3720.0,3.13787204]
[1753485425120,4.54332523,3720.1,3720.0,2.68817204]
[1753485425591,4.54332523,3720.1,3719.9,2.68821708]
[1753485425896,4.04972523,3720.1,3719.8,0.4497]
[1753485426060,0.4936,3720.0,3719.8,0.4497]
[1753485426795,0.4936,3720.0,3719.9,2.68824413]
[1753485426989,0.4936,3720.0,3719.8,3.13800291]
[1753485427291,0.4936,3720.0,3719.4,4.3344]
[1753485427292,5.97034549,3719.9,3719.4,4.3344]
[1753485427494,4.04972523,3719.7,3719.4,4.3344]
[1753485427796,0.4936,3719.6,3719.4,4.3344]
[1753485428176,6.50472523,3719.7,3719.4,4.3344]
[1753485428377,0.4936,3719.6,3719.4,4.3344]
[1753485428578,0.4936,3719.5,3719.4,4.3344]
[1753485429092,0.7699,3719.5,3719.4,4.2]
[1753485429300,1.2635,3719.5,3719.4,4.2]
[1753485429701,1.2635,3719.5,3719.1,5.27820635]
[1753485429877,2.9486,3719.4,3719.1,2.5894]
[1753485430208,0.4936,3719.3,3719.1,2.5894]
[1753485430413,4.54332523,3719.3,3719.1,2.78744224]
[1753485430905,4.04972523,3719.3,3719.1,2.78744224]
[1753485431110,0.4936,3719.2,3719.1,2.78744224]
[1753485431673,2.455,3719.4,3719.1,5.9259648]
[1753485431910,2.9486,3719.4,3719.2,0.4497]
[1753485432276,2.455,3719.4,3719.2,0.4497]
[1753485432493,0.4936,3719.3,3719.1,0.33244224]
[1753485432688,2.455,3719.4,3719.1,3.47545469]
[1753485432880,2.455,3719.4,3719.2,0.4497]
[1753485433282,2.9486,3719.4,3719.2,0.4497]
[1753485433516,2.455,3719.4,3719.1,0.33244224]
[1753485433693,2.455,3719.4,3719.2,3.59259401]
[1753485433892,2.455,3719.4,3719.2,3.14289401]
[1753485434098,3.083,3719.6,3719.3,0.4497]
[1753485434415,0.4936,3719.5,3719.3,0.4497]
[1753485434910,0.4936,3719.5,3719.4,0.4497]
[1753485435105,0.4936,3719.5,3719.2,3.1429265]
[1753485435413,0.4936,3719.5,3719.3,0.4497]
[1753485436114,0.4936,3719.4,3719.3,0.4497]
[1753485436316,0.4936,3719.4,3719.2,2.6887265]
[1753485436317,0.4936,3719.4,3719.1,3.47094143]
[1753485436518,0.4936,3719.4,3719.1,5.47625575]
[1753485436683,0.4936,3719.4,3719.2,3.13845026]
[1753485437516,2.5894,3719.6,3719.2,2.68875026]
[1753485437718,0.4936,3719.3,3719.2,2.68875026]
[1753485439017,0.4936,3719.3,3719.1,5.47623315]
[1753485439417,0.4936,3719.3,3719.1,3.47093315]
[1753485439614,0.4936,3719.3,3719.1,5.92593315]
[1753485440399,0.4936,3719.3,3719.2,2.68875026]
[1753485441000,0.4905,3719.5,3719.2,3.13035026]
[1753485441394,0.4905,3719.5,3719.3,2.68867448]
[1753485442017,0.4905,3719.5,3719.3,3.13027448]
[1753485443425,0.4905,3719.5,3719.3,0.4416]
[1753485443722,0.4905,3719.5,3719.3,3.13026138]
[1753485444114,0.4905,3719.5,3719.4,2.68860568]
[1753485446193,0.4905,3719.5,3719.3,3.13025983]
[1753485447031,0.1344,3719.6,3719.3,3.13025983]
[1753485447246,0.4905,3719.5,3719.2,2.68873365]
[1753485447444,0.1344,3719.6,3719.2,2.68873365]
[1753485447629,0.4905,3719.4,3719.3,2.68867082]
[1753485448229,0.4905,3719.4,3719.2,3.13032246]
[1753485449920,0.4905,3719.4,3719.3,2.68867797]
[1753485450231,0.4905,3719.4,3719.3,3.13027797]
[1753485450527,0.1344,3719.6,3719.3,3.13027797]
[1753485450827,0.4905,3719.5,3719.3,3.13027797]
[1753485451332,0.4905,3719.5,3719.3,0.4416]
[1753485451831,0.4905,3719.5,3719.3,3.13026755]
[1753485452333,0.4905,3719.5,3719.3,0.4416]
[1753485453745,0.4905,3719.5,3719.1,5.97133489]
[1753485453746,0.4905,3719.4,3719.2,2.68873812]
[1753485454039,0.4905,3719.3,3719.2,2.68873812]
[1753485454213,0.4905,3719.3,3719.2,3.13033812]
[1753485454414,1.2741,3719.5,3719.2,3.13033812]
[1753485454616,0.4905,3719.4,3719.2,3.13033812]
[1753485455540,0.4905,3719.4,3719.2,0.4416]
[1753485456030,0.7836,3719.5,3719.3,0.4416]
[1753485456420,1.2741,3719.5,3719.3,0.4416]
[1753485457242,0.4905,3719.4,3719.2,2.68874392]
[1753485457540,0.4905,3719.4,3719.2,0.4416]
[1753485458559,0.4905,3719.4,3719.2,3.13034948]
[1753485458855,0.4905,3719.4,3719.3,0.4416]
[1753485460022,0.7836,3719.5,3719.3,0.4416]
[1753485460358,0.1344,3719.6,3719.3,3.62533441]
[1753485460656,0.1344,3719.6,3719.4,0.9367]
[1753485461045,0.1344,3719.6,3719.4,2.68859506]
[1753485461245,0.1344,3719.6,3719.5,3.1301334]
[1753485461459,0.1344,3719.6,3719.5,0.4416]
[1753485464169,0.1344,3719.6,3719.5,3.1301334]
[1753485464886,0.1344,3719.6,3719.5,3.6252334]
[1753485465036,0.7619,3719.8,3719.5,3.6252334]
[1753485465238,0.1344,3719.7,3719.6,0.4416]
[1753485468359,1.2524,3719.8,3719.6,0.4416]
[1753485468360,0.7619,3719.8,3719.6,3.13006112]
[1753485468560,0.1344,3719.8,3719.7,2.68838884]
[1753485468874,4.04972523,3720.5,3719.7,2.68838884]
[1753485468875,2.5884,3720.4,3719.8,0.55]
[1753485469074,2.5884,3720.4,3720.3,2.68795527]
[1753485469448,2.454,3720.4,3720.3,3.12955527]
[1753485469648,2.454,3720.4,3720.3,3.62465527]
[1753485469971,2.454,3720.4,3720.3,0.9367]
[1753485470211,2.454,3720.4,3720.3,0.4416]
[1753485470672,3.2193,3720.8,3720.4,2.68788302]
[1753485470979,0.1344,3720.6,3720.5,0.4323]
[1753485473855,0.5973,3720.6,3720.2,0.887]
[1753485474052,0.4629,3720.5,3720.3,0.4323]
[1753485474288,0.5973,3720.6,3720.4,0.4323]
[1753485475991,0.5973,3720.6,3720.5,0.4323]
[1753485477801,0.1344,3720.6,3720.5,0.4323]
[1753485477961,0.5973,3720.6,3720.2,0.4323]
[1753485478156,0.1344,3720.6,3720.1,2.68809978]
[1753485478398,0.4629,3720.5,3720.3,0.4323]
[1753485479795,0.4629,3720.5,3720.4,0.4323]
[1753485479993,0.1344,3720.6,3720.4,0.4323]
[1753485480309,0.5973,3720.6,3720.4,0.4323]
[1753485484818,0.5973,3720.6,3720.3,2.68793155]
[1753485484972,0.1344,3720.6,3720.5,0.4323]
[1753485486809,0.1344,3720.6,3720.4,2.68788217]
[1753485487011,2.454,3720.8,3720.5,2.68776467]
[1753485487197,0.1344,3720.7,3720.6,0.4323]
[1753485487398,2.454,3720.8,3720.6,0.4323]
[1753485487598,2.5884,3720.8,3720.5,0.4547]
[1753485487798,3.0513,3720.8,3720.6,0.4323]
[1753485488169,0.4629,3720.7,3720.6,0.4323]
[1753485491405,0.8182,3720.5,3719.9,0.7795]
[1753485491705,9.7869282,3720.4,3719.8,5.82267595]
[1753485491922,7.09902523,3720.4,3719.9,2.68824021]
[1753485492071,0.4629,3720.3,3719.9,2.68824021]
[1753485492403,0.4629,3720.3,3719.9,3.12054021]
[1753485493595,0.4629,3720.3,3719.9,0.4323]
[1753485493904,6.63612523,3720.4,3719.8,0.1344]
[1753485494095,3.47940402,3720.1,3719.6,3.0]
[1753485494281,0.1344,3720.0,3719.6,3.0]
[1753485494681,0.4629,3719.9,3719.6,3.0]
[1753485494884,0.1344,3720.0,3719.6,3.4323]
[1753485495102,0.1344,3720.0,3719.6,3.0]
[1753485495410,0.4629,3719.9,3719.7,0.4323]
[1753485496005,0.1344,3720.0,3719.7,0.4323]
[1753485496006,0.4629,3719.8,3719.7,0.4323]
[1753485496313,3.15121657,3719.8,3719.5,0.1344]
[1753485496476,2.68831657,3719.8,3719.5,0.1344]
[1753485496672,3.15121657,3719.8,3719.5,0.5667]
[1753485496873,3.15121657,3719.8,3719.5,0.1344]
[1753485497182,3.15121657,3719.8,3719.6,0.4323]
[1753485497800,2.68846112,3719.6,3719.2,0.4323]
[1753485497968,2.68846112,3719.6,3719.2,0.5667]
[1753485498171,3.15136112,3719.6,3719.3,0.4323]
[1753485498375,3.15136112,3719.6,3719.2,0.5891]
[1753485498599,3.15136112,3719.6,3719.4,0.4323]
[1753485498921,2.68846112,3719.6,3719.2,0.1344]
[1753485499211,5.274728,3719.8,3719.2,3.25544141]
[1753485499212,0.4629,3719.5,3719.2,3.25544141]
[1753485499611,0.4629,3719.5,3719.2,2.82314141]
[1753485499818,0.4629,3719.5,3719.3,0.4323]
[1753485499982,0.4629,3719.5,3719.2,0.5891]
[1753485500199,0.4629,3719.5,3719.3,0.4677]
[1753485500579,0.4804,3719.4,3719.2,0.1344]
[1753485500780,0.4804,3719.4,3719.0,5.5864]
[1753485501012,0.4804,3719.4,3719.2,0.4677]
[1753485501225,2.86469391,3719.4,3718.6,0.4677]
[1753485501407,3.51248208,3719.1,3718.7,0.1344]
[1753485501621,3.51248208,3719.1,3718.7,0.33651549]
[1753485501906,0.4804,3719.0,3718.8,0.4677]
[1753485504721,0.8109,3720.5,3719.3,0.55]
[1753485505026,1.2913,3720.5,3719.8,2.68829115]
[1753485505229,0.8109,3720.5,3719.9,0.4677]
[1753485505382,1.12349791,3720.4,3719.9,0.4677]
[1753485505587,3.09509791,3720.4,3720.0,2.68817204]
[1753485505787,0.4804,3720.3,3720.0,3.15587204]
[1753485506484,0.4804,3720.3,3720.1,2.6880926]
[1753485506685,0.4804,3720.3,3720.1,3.1557926]
[1753485507016,2.9324,3720.3,3720.1,3.1557926]
[1753485510340,2.451,3720.6,3720.5,3.15551077]
[1753485512117,2.451,3720.6,3720.5,3.64041077]
[1753485512734,2.451,3720.6,3720.5,3.15551077]
[1753485515924,2.9314,3720.6,3720.5,3.15551077]
[1753485516227,0.4804,3720.6,3720.5,3.15551077]
[1753485517425,0.6148,3720.8,3720.5,0.4677]
[1753485517624,0.1344,3720.8,3720.5,0.4677]
[1753485517791,0.4804,3720.7,3720.6,2.68773853]
[1753485522331,0.4804,3720.7,3720.6,3.15543853]
[1753485522502,0.1344,3720.8,3720.6,3.15543853]
[1753485522702,0.6148,3720.8,3720.6,3.15543853]
[1753485522903,0.4804,3720.7,3720.6,3.15543853]
[1753485523734,0.4804,3720.7,3720.6,0.4677]
[1753485523921,0.4804,3720.7,3720.5,2.68778059]
[1753485524122,0.4804,3720.7,3720.6,2.68773853]
[1753485524436,0.1344,3720.8,3720.5,3.15547862]
[1753485524728,0.4804,3720.6,3720.5,3.15547862]
[1753485526337,0.1344,3720.8,3720.5,3.15547862]
[1753485526543,0.4804,3720.7,3720.5,3.15547862]
[1753485526914,0.4804,3720.7,3720.5,0.4677]
[1753485527422,0.4804,3720.6,3720.2,4.2]
[1753485527628,0.1344,3720.5,3720.3,2.68791321]
[1753485527841,0.1344,3720.5,3720.4,0.4677]
[1753485529276,0.1344,3720.5,3720.2,4.2]
[1753485529277,0.6148,3720.5,3720.2,6.88801103]